fUST/lending_fUST_20250210
["ID","MTS","AMOUNT","RATE_DAILY","PERIOD"]
[352540277,1739158244638,-502.61025418,0.00011232,2]
[352540278,1739158244647,-2724.01,0.00011232,2]
[352540279,1739158244657,-500.0,0.00011232,2]
[352540280,1739158244667,-500.0,0.00011232,2]
[352540281,1739158244676,-500.0,0.00011232,2]
[352540282,1739158244686,-5390.65,0.00011232,2]
[352540283,1739158244696,-1069.82,0.00011232,2]
[352540284,1739158244705,-500.0,0.00011232,2]
[352540285,1739158244715,-762.52,0.00011232,2]
[352540286,1739158244724,-529.22,0.00011232,2]
[352540287,1739158244733,-7501.34,0.00011232,2]
[352540288,1739158244742,-500.0,0.00011232,2]
[352540289,1739158244751,-500.0,0.00011368,2]
[352540290,1739158244761,-191.39125139,0.00011368,2]
[352540291,1739158244770,-562.69126964,0.00011368,2]
[352540292,1739158244779,-500.0,0.00011368,2]
[352540293,1739158244788,-500.0,0.00011369,2]
[352540294,1739158244798,-500.0,0.00011369,2]
[352540295,1739158244807,-500.0,0.00011369,2]
[352540296,1739158244818,-500.0,0.00011369,2]
[352540297,1739158244828,-247.77134264,0.00011369,2]
[352540298,1739158244837,-500.0,0.00011369,2]
[352540299,1739158244847,-500.0,0.00011369,2]
[352540300,1739158244858,-500.0,0.00011369,2]
[352540301,1739158244868,-750.9,0.00011369,2]
[352540302,1739158244878,-500.0,0.00011369,2]
[352540303,1739158244888,-500.0,0.00011369,2]
[352540304,1739158244898,-500.0,0.00011369,2]
[352540305,1739158244908,-500.0,0.00011369,2]
[352540306,1739158244918,-500.0,0.00011369,2]
[352540307,1739158244929,-500.0,0.00011369,2]
[352540308,1739158244940,-500.0,0.00011369,2]
[352540309,1739158244950,-500.0,0.00011369,2]
[352540310,1739158244960,-500.0,0.00011369,2]
[352540311,1739158244970,-500.0,0.00011369,2]
[352540312,1739158244980,-500.0,0.00011369,2]
[352540313,1739158244990,-347.58565032,0.00011369,2]
[352540314,1739158245000,-580.82721414,0.00011369,2]
[352540315,1739158245010,-500.0,0.00011369,2]
[352540316,1739158245019,-500.0,0.00011369,2]
[352540317,1739158245029,-500.0,0.00011369,2]
[352540318,1739158245039,-500.0,0.00011369,2]
[352540319,1739158245051,-500.0,0.00011369,2]
[352540320,1739158245060,-869.06,0.00011369,2]
[352540321,1739158245073,-500.0,0.00011369,2]
[352540322,1739158245083,-500.0,0.00011369,2]
[352540323,1739158245093,-500.0,0.00011369,2]
[352540324,1739158245103,-500.0,0.00011369,2]
[352540325,1739158245113,-500.0,0.00011369,2]
[352540326,1739158245124,-500.0,0.00011369,2]
[352540327,1739158245133,-500.0,0.00011369,2]
[352540328,1739158245143,-500.0,0.00011369,2]
[352540329,1739158245153,-500.0,0.00011369,2]
[352540330,1739158245163,-500.0,0.00011369,2]
[352540331,1739158245173,-500.0,0.00011369,2]
[352540332,1739158245184,-500.0,0.00011369,2]
[352540333,1739158245194,-500.0,0.00011369,2]
[352540334,1739158245205,-423.70414032,0.00011369,2]
[352540335,1739158245217,-500.0,0.00011369,2]
[352540336,1739158245226,-500.0,0.00011369,2]
[352540337,1739158245237,-500.0,0.00011369,2]
[352540338,1739158245247,-500.0,0.00011369,2]
[352540339,1739158245257,-500.0,0.00011369,2]
[352540340,1739158245268,-500.0,0.00011369,2]
[352540341,1739158245277,-500.0,0.00011369,2]
[352540342,1739158245287,-1264.74,0.00011369,2]
[352540343,1739158245298,-500.0,0.00011369,2]
[352540344,1739158245307,-500.0,0.00011369,2]
[352540345,1739158245319,-500.0,0.00011369,2]
[352540346,1739158245329,-500.0,0.00011369,2]
[352540347,1739158245338,-500.0,0.00011369,2]
[352540348,1739158245348,-500.0,0.00011369,2]
[352540349,1739158245357,-500.0,0.00011369,2]
[352540350,1739158245367,-500.0,0.00011369,2]
[352540351,1739158245377,-541.05493765,0.00011369,2]
[352540352,1739158245387,-500.0,0.00011369,2]
[352540353,1739158245396,-500.0,0.00011369,2]
[352540354,1739158245406,-500.0,0.00011369,2]
[352540355,1739158245415,-500.0,0.00011369,2]
[352540356,1739158245424,-500.0,0.00011369,2]
[352540357,1739158245434,-2387.63,0.00011369,2]
[352540358,1739158245443,-2833.6,0.00011369,2]
[352540359,1739158245453,-500.0,0.00011369,2]
[352540360,1739158245463,-1462.84,0.00011369,2]
[352540361,1739158245473,-500.0,0.00011369,2]
[352540362,1739158245483,-9414.28,0.00011369,2]
[352540363,1739158245493,-2762.05,0.00011369,2]
[352540364,1739158245503,-540.44,0.00011369,2]
[352540365,1739158245512,-832.77,0.00011369,2]
[352540366,1739158245522,-170.7404736,0.00011369,2]
[352540367,1739158245532,-500.0,0.00011369,2]
[352540368,1739158245541,-506.47339304,0.00011369,2]
[352540369,1739158245551,-18426.22,0.00011369,2]
[352540370,1739158245561,-500.0,0.00011369,2]
[352540371,1739158245573,-629.0,0.00011369,2]
[352540372,1739158245582,-1212.39,0.00011369,2]
[352540373,1739158245591,-1041.49,0.00011369,2]
[352540374,1739158245601,-500.0,0.00011369,2]
[352540375,1739158245611,-500.0,0.00011369,2]
[352540376,1739158245621,-541.97,0.00011369,2]
[352540377,1739158245631,-500.0,0.00011369,2]
[352540378,1739158245640,-560.89,0.00011369,2]
[352540379,1739158245650,-1382.72,0.00011369,2]
[352540380,1739158245661,-500.0,0.00011369,2]
[352540381,1739158245670,-500.0,0.00011369,2]
[352540382,1739158245679,-500.0,0.00011369,2]
[352540383,1739158245688,-500.0,0.00011369,2]
[352540384,1739158245698,-1123.04,0.00011369,2]
[352540385,1739158245708,-1124.08,0.00011369,2]
[352540386,1739158245718,-500.0,0.00011369,2]
[352540387,1739158245797,-500.0,0.00011369,2]
[352540388,1739158245817,-785.51,0.00011369,2]
[352540389,1739158245827,-500.0,0.00011369,2]
[352540390,1739158245836,-500.0,0.00011369,2]
[352540391,1739158245846,-1966.77,0.00011369,2]
[352540392,1739158245856,-505.23331944,0.00011369,2]
[352540393,1739158245866,-517.43,0.00011369,2]
[352540394,1739158245876,-2179.85,0.00011369,2]
[352540395,1739158245886,-1003.81,0.00011369,2]
[352540396,1739158245896,-577.79,0.00011369,2]
[352540397,1739158245906,-500.0,0.00011369,2]
[352540398,1739158245918,-500.0,0.00011369,2]
[352540399,1739158245927,-792.12,0.00011369,2]
[352540400,1739158245936,-888.19,0.00011369,2]
[352540402,1739158245946,-715.47,0.00011369,2]
[352540403,1739158245956,-732.07,0.00011369,2]
[352540404,1739158245965,-974.08,0.00011369,2]
[352540405,1739158245975,-500.0,0.00011369,2]
[352540406,1739158245985,-591.46,0.00011369,2]
[352540407,1739158245994,-565.22,0.00011369,2]
[352540408,1739158246004,-500.0,0.00011369,2]
[352540409,1739158246014,-838.17,0.00011369,2]
[352540410,1739158246023,-500.0,0.00011369,2]
[352540411,1739158246033,-511.83,0.00011369,2]
[352540412,1739158246043,-2397.98,0.00011369,2]
[352540413,1739158246053,-246.98050853,0.00011369,2]
[352540414,1739158246062,-500.0,0.00011369,2]
[352540415,1739158246074,-500.0,0.00011369,2]
[352540416,1739158246084,-500.0,0.00011369,2]
[352540417,1739158246094,-2724.01,0.00011369,2]
[352540418,1739158246104,-500.0,0.00011369,2]
[352540420,1739158246114,-500.0,0.00011369,2]
[352540421,1739158246125,-500.0,0.00011369,2]
[352540422,1739158246134,-5390.65,0.00011369,2]
[352540423,1739158246144,-1069.82,0.00011369,2]
[352540424,1739158246155,-310.94,0.00011369,2]
[352540425,1739158246165,-762.52,0.00011369,2]
[352540426,1739158246175,-529.22,0.00011369,2]
[352540427,1739158246185,-7501.34,0.00011369,2]
[352540428,1739158246196,-500.0,0.00011369,2]
[352540429,1739158246209,-500.000001,0.0001138,2]
[352540430,1739158246219,-500.0,0.00011506,2]
[352540431,1739158246229,-500.0,0.00011506,2]
[352540432,1739158246241,-500.0,0.00011506,2]
[352540433,1739158246252,-500.0,0.00011506,2]
[352540434,1739158246262,-500.0,0.00011506,2]
[352540435,1739158246271,-500.0,0.00011506,2]
[352540436,1739158246281,-181.85589958,0.00011506,2]
[352540437,1739158246290,-750.9,0.00011506,2]
[352540438,1739158246300,-500.0,0.00011506,2]
[352540439,1739158246312,-500.0,0.00011506,2]
[352540440,1739158246325,-520.60028929,0.00011506,2]
[352540441,1739158246335,-500.0,0.00011506,2]
[352540443,1739158246344,-563.42753114,0.00011506,2]
[352540445,1739158246354,-500.0,0.00011506,2]
[352540446,1739158246363,-500.0,0.00011506,2]
[352540447,1739158246372,-500.0,0.00011506,2]
[352540448,1739158246382,-500.0,0.00011506,2]
[352540449,1739158246391,-500.0,0.00011506,2]
[352540451,1739158246400,-500.0,0.00011506,2]
[352540453,1739158246410,-504.23829942,0.00011506,2]
[352540454,1739158246420,-500.0,0.00011506,2]
[352540455,1739158246429,-500.0,0.00011506,2]
[352540456,1739158246439,-500.0,0.00011506,2]
[352540457,1739158246448,-500.0,0.00011506,2]
[352540458,1739158246458,-869.06,0.00011506,2]
[352540459,1739158246467,-500.0,0.00011506,2]
[352540460,1739158246477,-500.0,0.00011506,2]
[352540461,1739158246486,-500.0,0.00011506,2]
[352540462,1739158246496,-500.0,0.00011506,2]
[352540463,1739158246505,-500.0,0.00011506,2]
[352540464,1739158246515,-500.0,0.00011506,2]
[352540465,1739158246525,-500.0,0.00011506,2]
[352540466,1739158246534,-247.28050055,0.00011506,2]
[352540467,1739158246544,-500.0,0.00011506,2]
[352540468,1739158246554,-500.0,0.00011506,2]
[352540470,1739158246563,-500.0,0.00011506,2]
[352540472,1739158246575,-389.42993362,0.00011506,2]
[352540473,1739158246585,-500.0,0.00011506,2]
[352540474,1739158246595,-500.0,0.00011506,2]
[352540475,1739158246604,-500.0,0.00011506,2]
[352540476,1739158246614,-500.0,0.00011506,2]
[352540477,1739158246625,-500.0,0.00011506,2]
[352540478,1739158246634,-500.0,0.00011506,2]
[352540479,1739158246646,-500.0,0.00011506,2]
[352540480,1739158246656,-1264.74,0.00011506,2]
[352540481,1739158246667,-500.0,0.00011506,2]
[352540482,1739158246677,-500.0,0.00011506,2]
[352540483,1739158246687,-500.0,0.00011506,2]
[352540484,1739158246698,-500.0,0.00011506,2]
[352540485,1739158246709,-500.0,0.00011506,2]
[352540486,1739158246720,-500.0,0.00011506,2]
[352540487,1739158246731,-500.0,0.00011506,2]
[352540488,1739158246741,-500.0,0.00011506,2]
[352540489,1739158246751,-500.0,0.00011506,2]
[352540490,1739158246762,-500.0,0.00011506,2]
[352540491,1739158246773,-500.0,0.00011506,2]
[352540492,1739158246783,-2387.63,0.00011506,2]
[352540493,1739158246792,-2833.6,0.00011506,2]
[352540494,1739158246802,-500.0,0.00011506,2]
[352540495,1739158246813,-1462.84,0.00011506,2]
[352540496,1739158246827,-512.10644892,0.00011506,2]
[352540497,1739158246837,-9414.28,0.00011506,2]
[352540498,1739158246847,-2762.05,0.00011506,2]
[352540499,1739158246857,-540.44,0.00011506,2]
[352540500,1739158246867,-832.77,0.00011506,2]
[352540501,1739158246876,-500.0,0.00011506,2]
[352540502,1739158246887,-18426.22,0.00011506,2]
[352540503,1739158246899,-500.0,0.00011506,2]
[352540504,1739158246911,-629.0,0.00011506,2]
[352540505,1739158246922,-1212.39,0.00011506,2]
[352540506,1739158246932,-1041.49,0.00011506,2]
[352540507,1739158246942,-500.0,0.00011506,2]
[352540508,1739158246951,-500.0,0.00011506,2]
[352540509,1739158246960,-541.97,0.00011506,2]
[352540510,1739158246971,-560.89,0.00011506,2]
[352540511,1739158246981,-1382.72,0.00011506,2]
[352540512,1739158246991,-500.0,0.00011506,2]
[352540513,1739158247001,-500.0,0.00011506,2]
[352540514,1739158247011,-421.97248335,0.00011506,2]
[352540515,1739158247021,-1123.04,0.00011506,2]
[352540516,1739158247031,-1124.08,0.00011506,2]
[352540517,1739158247042,-500.0,0.00011506,2]
[352540518,1739158247052,-217.0201522,0.00011506,2]
[352540519,1739158247064,-785.51,0.00011506,2]
[352540520,1739158247077,-500.0,0.00011506,2]
[352540521,1739158247089,-500.0,0.00011506,2]
[352540522,1739158247098,-1966.77,0.00011506,2]
[352540523,1739158247108,-517.43,0.00011506,2]
[352540524,1739158247118,-2179.85,0.00011506,2]
[352540525,1739158247129,-1003.81,0.00011506,2]
[352540526,1739158247138,-577.79,0.00011506,2]
[352540527,1739158247148,-500.0,0.00011506,2]
[352540528,1739158247160,-500.0,0.00011506,2]
[352540529,1739158247170,-792.12,0.00011506,2]
[352540530,1739158247180,-888.19,0.00011506,2]
[352540531,1739158247192,-715.47,0.00011506,2]
[352540532,1739158247204,-732.07,0.00011506,2]
[352540533,1739158247218,-974.08,0.00011506,2]
[352540534,1739158247228,-500.0,0.00011506,2]
[352540535,1739158247238,-591.46,0.00011506,2]
[352540536,1739158247247,-565.22,0.00011506,2]
[352540537,1739158247257,-500.0,0.00011506,2]
[352540538,1739158247266,-838.17,0.00011506,2]
[352540539,1739158247275,-500.0,0.00011506,2]
[352540540,1739158247287,-511.83,0.00011506,2]
[352540541,1739158247299,-2397.98,0.00011506,2]
[352540542,1739158247308,-500.0,0.00011506,2]
[352540543,1739158247320,-264.17865557,0.00011506,2]
[352540544,1739158247330,-500.0,0.00011506,2]
[352540545,1739158247339,-2724.01,0.00011506,2]
[352540546,1739158247350,-500.0,0.00011506,2]
[352540547,1739158247361,-500.0,0.00011506,2]
[352540548,1739158247372,-500.0,0.00011506,2]
[352540549,1739158247384,-5390.65,0.00011506,2]
[352540550,1739158247467,-1069.82,0.00011506,2]
[352540551,1739158247478,-762.52,0.00011506,2]
[352540552,1739158247488,-529.22,0.00011506,2]
[352540553,1739158247499,-7501.34,0.00011506,2]
[352540554,1739158247509,-500.0,0.00011506,2]
[352540555,1739158247520,-502.27251224,0.00011521,2]
[352540556,1739158247530,-500.59239481,0.00011521,2]
[352540557,1739158247540,-1007.88802541,0.00011521,2]
[352540558,1739158247550,-1000.0,0.00011521,2]
[352540559,1739158247560,-1000.0,0.00011521,2]
[352540560,1739158247572,-1000.0,0.00011521,2]
[352540561,1739158247582,-166.39412694,0.00011543,2]
[352540562,1739158247591,-500.48444395,0.0001158,2]
[352540563,1739158247602,-10011.48167471,0.00011614,2]
[352540564,1739158247612,-151.0,0.00011643,2]
[352540565,1739158247622,-151.538454,0.00011643,2]
[352540566,1739158247632,-500.0,0.00011643,2]
[352540567,1739158247643,-344.80364924,0.00011643,2]
[352540568,1739158247653,-500.0,0.00011643,2]
[352540569,1739158247663,-500.0,0.00011643,2]
[352540570,1739158247673,-500.0,0.00011643,2]
[352540571,1739158247683,-500.0,0.00011643,2]
[352540572,1739158247693,-750.9,0.00011643,2]
[352540573,1739158247703,-500.0,0.00011643,2]
[352540574,1739158247713,-500.0,0.00011643,2]
[352540575,1739158247723,-500.0,0.00011643,2]
[352540576,1739158247733,-500.0,0.00011643,2]
[352540577,1739158247742,-500.0,0.00011643,2]
[352540578,1739158247753,-500.0,0.00011643,2]
[352540579,1739158247764,-629.99702038,0.00011643,2]
[352540580,1739158247774,-190.34007891,0.00011643,2]
[352540581,1739158247784,-500.0,0.00011643,2]
[352540582,1739158247794,-500.0,0.00011643,2]
[352540583,1739158247804,-500.0,0.00011643,2]
[352540584,1739158247814,-500.0,0.00011643,2]
[352540585,1739158247825,-500.0,0.00011643,2]
[352540586,1739158247834,-869.06,0.00011643,2]
[352540587,1739158247844,-500.0,0.00011643,2]
[352540588,1739158247854,-500.0,0.00011643,2]
[352540589,1739158247864,-161.24409204,0.00011643,2]
[352540590,1739158247875,-500.0,0.00011643,2]
[352540591,1739158247885,-500.0,0.00011643,2]
[352540592,1739158247894,-500.0,0.00011643,2]
[352540593,1739158247904,-500.0,0.00011643,2]
[352540594,1739158247917,-500.0,0.00011643,2]
[352540595,1739158247927,-500.0,0.00011643,2]
[352540596,1739158247937,-500.0,0.00011643,2]
[352540597,1739158247948,-500.0,0.00011643,2]
[352540598,1739158247958,-500.0,0.00011643,2]
[352540599,1739158247968,-500.0,0.00011643,2]
[352540600,1739158247978,-500.0,0.00011643,2]
[352540601,1739158247988,-500.0,0.00011643,2]
[352540602,1739158247998,-500.0,0.00011643,2]
[352540603,1739158248008,-1264.74,0.00011643,2]
[352540604,1739158248019,-500.0,0.00011643,2]
[352540605,1739158248030,-500.0,0.00011643,2]
[352540606,1739158248041,-268.24746965,0.00011643,2]
[352540607,1739158248053,-500.0,0.00011643,2]
[352540608,1739158248064,-500.0,0.00011643,2]
[352540609,1739158248077,-500.0,0.00011643,2]
[352540610,1739158248088,-500.0,0.00011643,2]
[352540611,1739158248099,-500.0,0.00011643,2]
[352540612,1739158248110,-500.0,0.00011643,2]
[352540613,1739158248121,-500.0,0.00011643,2]
[352540614,1739158248135,-2387.63,0.00011643,2]
[352540615,1739158248147,-2833.6,0.00011643,2]
[352540616,1739158248158,-347.45778503,0.00011643,2]
[352540617,1739158248171,-1462.84,0.00011643,2]
[352540618,1739158248183,-9414.28,0.00011643,2]
[352540619,1739158248195,-2762.05,0.00011643,2]
[352540620,1739158248216,-540.44,0.00011643,2]
[352540621,1739158248227,-832.77,0.00011643,2]
[352540622,1739158248239,-500.0,0.00011643,2]
[352540623,1739158248250,-18426.22,0.00011643,2]
[352540624,1739158248262,-500.0,0.00011643,2]
[352540625,1739158248273,-629.0,0.00011643,2]
[352540626,1739158248285,-1212.39,0.00011643,2]
[352540627,1739158248296,-1041.49,0.00011643,2]
[352540628,1739158248308,-500.0,0.00011643,2]
[352540629,1739158248321,-500.0,0.00011643,2]
[352540630,1739158248332,-541.97,0.00011643,2]
[352540631,1739158248342,-560.89,0.00011643,2]
[352540632,1739158248353,-1382.72,0.00011643,2]
[352540633,1739158248364,-500.0,0.00011643,2]
[352540634,1739158248375,-500.0,0.00011643,2]
[352540635,1739158248387,-1123.04,0.00011643,2]
[352540636,1739158248398,-1124.08,0.00011643,2]
[352540637,1739158248409,-500.0,0.00011643,2]
[352540638,1739158248420,-785.51,0.00011643,2]
[352540639,1739158248431,-500.0,0.00011643,2]
[352540640,1739158248441,-479.52863686,0.00011643,2]
[352540641,1739158248452,-1966.77,0.00011643,2]
[352540642,1739158248463,-517.43,0.00011643,2]
[352540643,1739158248473,-2179.85,0.00011643,2]
[352540644,1739158248484,-1003.81,0.00011643,2]
[352540645,1739158248495,-577.79,0.00011643,2]
[352540646,1739158248506,-500.0,0.00011643,2]
[352540647,1739158248516,-500.0,0.00011643,2]
[352540648,1739158248526,-792.12,0.00011643,2]
[352540649,1739158248538,-888.19,0.00011643,2]
[352540650,1739158248551,-715.47,0.00011643,2]
[352540651,1739158248562,-732.07,0.00011643,2]
[352540652,1739158248578,-974.08,0.00011643,2]
[352540653,1739158248589,-500.0,0.00011643,2]
[352540654,1739158248600,-591.46,0.00011643,2]
[352540655,1739158248611,-565.22,0.00011643,2]
[352540656,1739158248623,-500.0,0.00011643,2]
[352540657,1739158248634,-838.17,0.00011643,2]
[352540658,1739158248646,-500.0,0.00011643,2]
[352540659,1739158248657,-511.83,0.00011643,2]
[352540660,1739158248667,-2397.98,0.00011643,2]
[352540661,1739158248677,-500.0,0.00011643,2]
[352540662,1739158248688,-500.0,0.00011643,2]
[352540663,1739158248699,-2724.01,0.00011643,2]
[352540664,1739158248711,-500.0,0.00011643,2]
[352540665,1739158248722,-500.0,0.00011643,2]
[352540666,1739158248733,-500.0,0.00011643,2]
[352540667,1739158248745,-5390.65,0.00011643,2]
[352540668,1739158248757,-1069.82,0.00011643,2]
[352540669,1739158248767,-762.52,0.00011643,2]
[352540670,1739158248778,-529.22,0.00011643,2]
[352540671,1739158248789,-7501.34,0.00011643,2]
[352540672,1739158248800,-500.0,0.00011643,2]
[352540673,1739158248812,-1461.34814674,0.00011779,2]
[352540674,1739158248829,-500.0,0.0001178,2]
[352540675,1739158248841,-500.0,0.0001178,2]
[352540676,1739158248852,-500.0,0.0001178,2]
[352540677,1739158248863,-500.0,0.0001178,2]
[352540678,1739158248875,-327.31765265,0.0001178,2]
[352540679,1739158248886,-750.9,0.0001178,2]
[352540680,1739158248898,-500.0,0.0001178,2]
[352540681,1739158248910,-500.0,0.0001178,2]
[352540682,1739158248920,-500.0,0.0001178,2]
[352540683,1739158248931,-203.71068915,0.0001178,2]
[352540684,1739158248942,-500.0,0.0001178,2]
[352540685,1739158248954,-500.0,0.0001178,2]
[352540686,1739158248965,-500.0,0.0001178,2]
[352540687,1739158248976,-500.0,0.0001178,2]
[352540688,1739158248986,-340.17337902,0.0001178,2]
[352540689,1739158248997,-500.0,0.0001178,2]
[352540690,1739158249008,-500.0,0.0001178,2]
[352540691,1739158249018,-869.06,0.0001178,2]
[352540692,1739158249096,-500.0,0.0001178,2]
[352540693,1739158249116,-500.0,0.0001178,2]
[352540694,1739158249127,-500.0,0.0001178,2]
[352540695,1739158249137,-500.0,0.0001178,2]
[352540696,1739158249147,-500.0,0.0001178,2]
[352540697,1739158249158,-517.40430354,0.0001178,2]
[352540698,1739158249169,-500.0,0.0001178,2]
[352540699,1739158249180,-500.0,0.0001178,2]
[352540700,1739158249190,-500.0,0.0001178,2]
[352540701,1739158249204,-500.0,0.0001178,2]
[352540702,1739158249215,-500.0,0.0001178,2]
[352540703,1739158249227,-500.0,0.0001178,2]
[352540704,1739158249237,-500.0,0.0001178,2]
[352540705,1739158249248,-1264.74,0.0001178,2]
[352540706,1739158249259,-602.78200167,0.0001178,2]
[352540707,1739158249269,-500.0,0.0001178,2]
[352540708,1739158249279,-500.0,0.0001178,2]
[352540709,1739158249290,-500.0,0.0001178,2]
[352540710,1739158249300,-500.0,0.0001178,2]
[352540711,1739158249311,-313.34079779,0.0001178,2]
[352540712,1739158249324,-500.0,0.0001178,2]
[352540713,1739158249334,-500.0,0.0001178,2]
[352540714,1739158249344,-2387.63,0.0001178,2]
[352540715,1739158249355,-2833.6,0.0001178,2]
[352540716,1739158249366,-1462.84,0.0001178,2]
[352540717,1739158249376,-9414.28,0.0001178,2]
[352540718,1739158249387,-2762.05,0.0001178,2]
[352540719,1739158249396,-540.44,0.0001178,2]
[352540720,1739158249406,-832.77,0.0001178,2]
[352540721,1739158249417,-500.0,0.0001178,2]
[352540722,1739158249427,-18426.22,0.0001178,2]
[352540723,1739158249437,-500.0,0.0001178,2]
[352540724,1739158249447,-629.0,0.0001178,2]
[352540725,1739158249457,-1212.39,0.0001178,2]
[352540726,1739158249467,-1041.49,0.0001178,2]
[352540727,1739158249476,-500.0,0.0001178,2]
[352540728,1739158249486,-447.48363564,0.0001178,2]
[352540729,1739158249495,-541.97,0.0001178,2]
[352540730,1739158249505,-560.89,0.0001178,2]
[352540731,1739158249515,-1382.72,0.0001178,2]
[352540732,1739158249526,-500.0,0.0001178,2]
[352540733,1739158249535,-500.0,0.0001178,2]
[352540734,1739158249545,-1123.04,0.0001178,2]
[352540735,1739158249554,-1124.08,0.0001178,2]
[352540736,1739158249564,-500.0,0.0001178,2]
[352540737,1739158249576,-785.51,0.0001178,2]
[352540738,1739158249586,-476.95589323,0.0001178,2]
[352540739,1739158249595,-1966.77,0.0001178,2]
[352540740,1739158249605,-517.43,0.0001178,2]
[352540741,1739158249615,-2179.85,0.0001178,2]
[352540742,1739158249625,-1003.81,0.0001178,2]
[352540743,1739158249634,-577.79,0.0001178,2]
[352540744,1739158249644,-265.01161138,0.0001178,2]
[352540745,1739158249653,-500.0,0.0001178,2]
[352540746,1739158249662,-792.12,0.0001178,2]
[352540747,1739158249671,-888.19,0.0001178,2]
[352540748,1739158249681,-715.47,0.0001178,2]
[352540749,1739158249691,-732.07,0.0001178,2]
[352540750,1739158249700,-974.08,0.0001178,2]
[352540751,1739158249710,-500.0,0.0001178,2]
[352540752,1739158249719,-591.46,0.0001178,2]
[352540753,1739158249728,-565.22,0.0001178,2]
[352540754,1739158249737,-500.0,0.0001178,2]
[352540755,1739158249747,-838.17,0.0001178,2]
[352540756,1739158249756,-500.0,0.0001178,2]
[352540757,1739158249765,-511.83,0.0001178,2]
[352540758,1739158249777,-2397.98,0.0001178,2]
[352540759,1739158249795,-500.0,0.0001178,2]
[352540760,1739158249811,-505.75463293,0.0001178,2]
[352540761,1739158249826,-2724.01,0.0001178,2]
[352540762,1739158249841,-500.0,0.0001178,2]
[352540763,1739158249858,-500.0,0.0001178,2]
[352540764,1739158249874,-628.05737795,0.0001178,2]
[352540765,1739158249889,-5390.65,0.0001178,2]
[352540766,1739158249904,-1069.82,0.0001178,2]
[352540767,1739158249917,-762.52,0.0001178,2]
[352540768,1739158249934,-529.22,0.0001178,2]
[352540769,1739158249947,-7501.34,0.0001178,2]
[352540770,1739158249958,-500.0,0.00011917,2]
[352540771,1739158249973,-500.0,0.00011917,2]
[352540772,1739158249989,-500.0,0.00011917,2]
[352540773,1739158250004,-500.0,0.00011917,2]
[352540774,1739158250021,-750.9,0.00011917,2]
[352540775,1739158250038,-500.0,0.00011917,2]
[352540776,1739158250049,-500.0,0.00011917,2]
[352540777,1739158250062,-500.0,0.00011917,2]
[352540778,1739158250080,-500.0,0.00011917,2]
[352540779,1739158250094,-500.0,0.00011917,2]
[352540780,1739158250107,-500.0,0.00011917,2]
[352540781,1739158250122,-500.0,0.00011917,2]
[352540782,1739158250135,-500.0,0.00011917,2]
[352540783,1739158250148,-332.0508245,0.00011917,2]
[352540784,1739158250160,-869.06,0.00011917,2]